[Event "*** Titled Tuesday Blitz"]
[Site "Chess.com"]
[Date "2018.11.06"]
[Round "9"]
[White "LastGladiator1"]
[Black "jcibarra"]
[Result "1-0"]
[WhiteElo "2639"]
[BlackElo "2633"]
[TimeControl "180+2"]
[EndTime "15:07:14 PST"]
[Termination "LastGladiator1 won by checkmate"]

1. b4 {[%clk 0:03:01.9]} 1... e5 {[%clk 0:02:59.4]} 2. Bb2 {[%clk 0:03:02.5]}
2... Bxb4 {[%clk 0:03:00.5]} 3. Bxe5 {[%clk 0:03:04]} 3... Nf6 {[%clk
0:03:01.6]} 4. Nf3 {[%clk 0:03:05.4]} 4... O-O {[%clk 0:03:02.6]} 5. e3 {[%clk
0:03:06.5]} 5... d5 {[%clk 0:03:03.6]} 6. Be2 {[%clk 0:03:07.2]} 6... c5 {[%clk
0:03:04.7]} 7. O-O {[%clk 0:03:07.2]} 7... Nc6 {[%clk 0:03:06.1]} 8. Bb2 {[%clk
0:03:08.3]} 8... Re8 {[%clk 0:03:07.4]} 9. d3 {[%clk 0:03:09.6]} 9... Bg4 {[%clk
0:03:07.4]} 10. Nbd2 {[%clk 0:03:10.3]} 10... Qd6 {[%clk 0:02:39.1]} 11. h3
{[%clk 0:03:03.7]} 11... Bh5 {[%clk 0:02:37.3]} 12. c4 {[%clk 0:03:02.9]} 12...
Bxd2 {[%clk 0:02:29.7]} 13. Nxd2 {[%clk 0:02:57.3]} 13... Bxe2 {[%clk 0:02:26]}
14. Qxe2 {[%clk 0:02:59.2]} 14... Rad8 {[%clk 0:02:21.1]} 15. Rad1 {[%clk
0:02:53.1]} 15... Nd4 {[%clk 0:02:17.5]} 16. Bxd4 {[%clk 0:02:37.6]} 16... cxd4
{[%clk 0:02:17.3]} 17. Qf3 {[%clk 0:02:37.3]} 17... dxe3 {[%clk 0:02:15.3]} 18.
fxe3 {[%clk 0:02:38]} 18... dxc4 {[%clk 0:01:57.5]} 19. Nxc4 {[%clk 0:02:38.5]}
19... Qc7 {[%clk 0:01:55]} 20. e4 {[%clk 0:02:31.3]} 20... Nxe4 {[%clk
0:01:46.1]} 21. Rde1 {[%clk 0:02:01.5]} 21... Nf6 {[%clk 0:01:36.7]} 22. Rxe8+
{[%clk 0:01:59.5]} 22... Rxe8 {[%clk 0:01:38.6]} 23. Rb1 {[%clk 0:01:56.8]}
23... b6 {[%clk 0:01:32.6]} 24. a4 {[%clk 0:01:56.4]} 24... h5 {[%clk
0:01:22.1]} 25. Rb5 {[%clk 0:01:52.4]} 25... Re1+ {[%clk 0:01:18.4]} 26. Kf2
{[%clk 0:01:53]} 26... Ra1 {[%clk 0:01:12.8]} 27. Rg5 {[%clk 0:01:27.6]} 27...
Qh2 {[%clk 0:01:01.8]} 28. Qxf6 {[%clk 0:01:07.9]} 28... Qg1+ {[%clk 0:00:38.9]}
29. Kg3 {[%clk 0:01:06.6]} 29... Qe1+ {[%clk 0:00:36.5]} 30. Kh2 {[%clk
0:00:58.8]} 30... Qg1+ {[%clk 0:00:34.5]} 31. Kg3 {[%clk 0:00:58.1]} 31... Qe1+
{[%clk 0:00:35.3]} 32. Qf2 {[%clk 0:00:57.1]} 32... h4+ {[%clk 0:00:32.5]} 33.
Kf3 {[%clk 0:00:57.5]} 33... Qd1+ {[%clk 0:00:23.4]} 34. Qe2 {[%clk 0:00:20.6]}
34... Qxa4 {[%clk 0:00:23.8]} 35. Re5 {[%clk 0:00:17.5]} 35... Qc6+ {[%clk
0:00:22.7]} 36. Kg4 {[%clk 0:00:10.9]} 36... Qg6+ {[%clk 0:00:12]} 37. Kxh4
{[%clk 0:00:09.1]} 37... b5 {[%clk 0:00:09.8]} 38. Re8+ {[%clk 0:00:03.5]} 38...
Kh7 {[%clk 0:00:10.9]} 39. Nd2 {[%clk 0:00:05]} 39... Ra4+ {[%clk 0:00:10.3]}
40. g4 {[%clk 0:00:05.9]} 40... Qf6+ {[%clk 0:00:08.7]} 41. Kg3 {[%clk
0:00:06.9]} 41... Qf4+ {[%clk 0:00:09.6]} 42. Kg2 {[%clk 0:00:05.3]} 42... Ra2
{[%clk 0:00:11.5]} 43. Qe4+ {[%clk 0:00:03.8]} 43... Qxe4+ {[%clk 0:00:11.3]}
44. dxe4 {[%clk 0:00:05.7]} 44... Rxd2+ {[%clk 0:00:12.2]} 45. Kg3 {[%clk
0:00:07.6]} 45... b4 {[%clk 0:00:12.2]} 46. Rb8 {[%clk 0:00:08.6]} 46... a5
{[%clk 0:00:09.9]} 47. Rb5 {[%clk 0:00:09]} 47... Ra2 {[%clk 0:00:09.3]} 48. Kf4
{[%clk 0:00:10.5]} 48... Ra3 {[%clk 0:00:10.1]} 49. h4 {[%clk 0:00:11.5]} 49...
b3 {[%clk 0:00:11.5]} 50. h5 {[%clk 0:00:12.5]} 50... a4 {[%clk 0:00:12.6]} 51.
g5 {[%clk 0:00:13.6]} 51... Ra2 {[%clk 0:00:14]} 52. Rb4 {[%clk 0:00:07.6]}
52... b2 {[%clk 0:00:13.2]} 53. Kf5 {[%clk 0:00:08.8]} 53... a3 {[%clk
0:00:09.2]} 54. g6+ {[%clk 0:00:09.1]} 54... fxg6+ {[%clk 0:00:10.7]} 55. hxg6+
{[%clk 0:00:10.7]} 55... Kh6 {[%clk 0:00:12.3]} 56. Rb8 {[%clk 0:00:11.7]} 56...
b1=Q {[%clk 0:00:04.2]} 57. Rh8# {[%clk 0:00:12.8]} 1-0

[Event "*** Titled Tuesday Blitz"]
[Site "Chess.com"]
[Date "2018.11.06"]
[Round "9"]
[White "hypert"]
[Black "2Tilted"]
[Result "1-0"]
[WhiteElo "2388"]
[BlackElo "2407"]
[TimeControl "180+2"]
[EndTime "15:07:25 PST"]
[Termination "hypert won by resignation"]

1. Nf3 {[%clk 0:03:01.9]} 1... Nf6 {[%clk 0:02:59]} 2. g3 {[%clk 0:03:03.8]}
2... c5 {[%clk 0:02:58.9]} 3. Bg2 {[%clk 0:03:04]} 3... d5 {[%clk 0:03:00.2]} 4.
O-O {[%clk 0:03:05.3]} 4... Nc6 {[%clk 0:03:01.6]} 5. d3 {[%clk 0:03:05]} 5...
e5 {[%clk 0:03:02.6]} 6. e4 {[%clk 0:03:02.3]} 6... Be7 {[%clk 0:02:59.3]} 7.
Nc3 {[%clk 0:03:00.7]} 7... O-O {[%clk 0:02:54.1]} 8. exd5 {[%clk 0:02:35.1]}
8... Nxd5 {[%clk 0:02:55.2]} 9. Nxe5 {[%clk 0:02:30.5]} 9... Nxc3 {[%clk
0:02:55.6]} 10. Nxc6 {[%clk 0:02:31.5]} 10... Nxd1 {[%clk 0:02:54]} 11. Nxd8
{[%clk 0:02:32.4]} 11... Nxb2 {[%clk 0:02:44.2]} 12. Nxb7 {[%clk 0:02:26.2]}
12... Rb8 {[%clk 0:02:06.9]} 13. Bxb2 {[%clk 0:02:06.1]} 13... Bxb7 {[%clk
0:02:07]} 14. Be5 {[%clk 0:01:56.4]} 14... Bxg2 {[%clk 0:02:07.2]} 15. Kxg2
{[%clk 0:01:58.3]} 15... Rb6 {[%clk 0:02:00.4]} 16. Rfb1 {[%clk 0:01:55.3]}
16... Bf6 {[%clk 0:01:43.6]} 17. Bxf6 {[%clk 0:01:53.3]} 17... Rxf6 {[%clk
0:01:40.2]} 18. Rb7 {[%clk 0:01:49]} 18... Ra6 {[%clk 0:01:31.1]} 19. a4 {[%clk
0:01:49.4]} 19... g6 {[%clk 0:01:29.3]} 20. a5 {[%clk 0:01:42.1]} 20... Rc8
{[%clk 0:01:30]} 21. h4 {[%clk 0:01:41.5]} 21... h5 {[%clk 0:01:29]} 22. Re1
{[%clk 0:01:31.3]} 22... Rxa5 {[%clk 0:01:21.5]} 23. Ree7 {[%clk 0:01:32.1]}
23... Rf8 {[%clk 0:01:19.8]} 24. Rxa7 {[%clk 0:01:32]} 24... Rxa7 {[%clk
0:01:20.5]} 25. Rxa7 {[%clk 0:01:33.9]} 25... Rc8 {[%clk 0:01:21.6]} 26. Kf3
{[%clk 0:01:33.6]} 26... Kg7 {[%clk 0:01:22.6]} 27. Rd7 {[%clk 0:01:30.6]} 27...
Kf6 {[%clk 0:01:19]} 28. Ke4 {[%clk 0:01:19.2]} 28... Ke6 {[%clk 0:01:19.9]} 29.
Ra7 {[%clk 0:01:19.1]} 29... Rc6 {[%clk 0:01:18.7]} 30. Rb7 {[%clk 0:01:14.6]}
30... Rd6 {[%clk 0:01:06.7]} 31. Rc7 {[%clk 0:01:13.4]} 31... Rd4+ {[%clk
0:01:07.6]} 32. Ke3 {[%clk 0:01:13]} 32... Rd5 {[%clk 0:01:09.5]} 33. f4 {[%clk
0:01:07.3]} 33... Rf5 {[%clk 0:01:06.9]} 34. Ke4 {[%clk 0:00:57.8]} 34... Kd6
{[%clk 0:01:05.7]} 35. Ra7 {[%clk 0:00:58.7]} 35... Ke6 {[%clk 0:01:02.6]} 36.
c3 {[%clk 0:00:50.8]} 36... Kd6 {[%clk 0:01:02.7]} 37. Ra6+ {[%clk 0:00:51.4]}
37... Kd7 {[%clk 0:01:01.8]} 38. Rb6 {[%clk 0:00:48.5]} 38... Kc7 {[%clk
0:01:00.5]} 39. Ra6 {[%clk 0:00:49.4]} 39... Kd7 {[%clk 0:00:59.8]} 40. d4
{[%clk 0:00:47.4]} 40... cxd4 {[%clk 0:01:00.2]} 41. cxd4 {[%clk 0:00:49.1]}
41... Ke7 {[%clk 0:00:51]} 42. d5 {[%clk 0:00:48.4]} 42... Kd7 {[%clk
0:00:50.8]} 43. Kd4 {[%clk 0:00:48]} 43... Ke7 {[%clk 0:00:47.3]} 44. Kc5 {[%clk
0:00:48.5]} 44... Kd7 {[%clk 0:00:46.7]} 45. Ra7+ {[%clk 0:00:45.6]} 45... Ke8
{[%clk 0:00:47.5]} 46. Kc6 {[%clk 0:00:40.9]} 46... f6 {[%clk 0:00:34.5]} 47.
Rg7 {[%clk 0:00:31.7]} 47... g5 {[%clk 0:00:30.5]} 48. fxg5 {[%clk 0:00:32.6]}
48... fxg5 {[%clk 0:00:32.4]} 49. Rxg5 {[%clk 0:00:33.1]} 49... Rf3 {[%clk
0:00:32.9]} 50. Kd6 {[%clk 0:00:25.4]} 50... Rf6+ {[%clk 0:00:30.7]} 51. Ke5
{[%clk 0:00:26.2]} 51... Rf3 {[%clk 0:00:32.6]} 52. d6 {[%clk 0:00:22.5]} 52...
Kd7 {[%clk 0:00:32.2]} 53. Rg7+ {[%clk 0:00:22.6]} 53... Kd8 {[%clk 0:00:33.1]}
54. Ke4 {[%clk 0:00:21.2]} 54... Ra3 {[%clk 0:00:31.6]} 55. Kf4 {[%clk
0:00:21.6]} 55... Ra5 {[%clk 0:00:28.5]} 56. Rg5 {[%clk 0:00:21.6]} 56... Ra4+
{[%clk 0:00:29.3]} 57. Kf5 {[%clk 0:00:22.9]} 57... Ra3 {[%clk 0:00:28.4]} 58.
Kg6 {[%clk 0:00:23.9]} 58... Kd7 {[%clk 0:00:29.2]} 59. Kxh5 {[%clk 0:00:23.4]}
59... Kxd6 {[%clk 0:00:30.6]} 60. Kg6 {[%clk 0:00:24.7]} 60... Ke7 {[%clk
0:00:31.7]} 61. h5 {[%clk 0:00:26]} 61... Kf8 {[%clk 0:00:33.2]} 62. Kh7 {[%clk
0:00:25.1]} 62... Ra7+ {[%clk 0:00:33.3]} 63. Kh8 {[%clk 0:00:25.6]} 63... Ra6
{[%clk 0:00:34.1]} 64. Rf5+ {[%clk 0:00:25.2]} 64... Ke8 {[%clk 0:00:34.2]} 65.
g4 {[%clk 0:00:26.8]} 65... Ra4 {[%clk 0:00:32.6]} 66. g5 {[%clk 0:00:27.9]}
66... Rh4 {[%clk 0:00:31.1]} 67. h6 {[%clk 0:00:29]} 67... Ke7 {[%clk
0:00:31.9]} 68. h7 {[%clk 0:00:27.7]} 68... Ke6 {[%clk 0:00:32.1]} 69. Rf6+
{[%clk 0:00:29]} 69... Ke7 {[%clk 0:00:32.8]} 70. Kg7 {[%clk 0:00:29.3]} 70...
Rh5 {[%clk 0:00:31.8]} 71. h8=Q {[%clk 0:00:28.2]} 71... Rxg5+ {[%clk 0:00:33]}
72. Rg6 {[%clk 0:00:29.4]} 72... Rf5 {[%clk 0:00:32.6]} 73. Qh4+ {[%clk
0:00:29.8]} 1-0

[Event "*** Titled Tuesday Blitz"]
[Site "Chess.com"]
[Date "2018.11.06"]
[Round "9"]
[White "Barcelona_Guy"]
[Black "santosalberto1987"]
[Result "1/2-1/2"]
[WhiteElo "2475"]
[BlackElo "2405"]
[TimeControl "180+2"]
[EndTime "15:08:09 PST"]
[Termination "Game drawn by agreement"]

1. e4 {[%clk 0:03:01.9]} 1... e6 {[%clk 0:03:00.9]} 2. d3 {[%clk 0:03:02]} 2...
d5 {[%clk 0:03:02.1]} 3. Nd2 {[%clk 0:03:03.7]} 3... Nf6 {[%clk 0:03:03.3]} 4.
Ngf3 {[%clk 0:03:02]} 4... Nc6 {[%clk 0:03:04.6]} 5. g3 {[%clk 0:02:57.3]} 5...
dxe4 {[%clk 0:03:05]} 6. dxe4 {[%clk 0:02:59.2]} 6... e5 {[%clk 0:03:06.2]} 7.
Bg2 {[%clk 0:03:00.7]} 7... Bc5 {[%clk 0:03:07.5]} 8. O-O {[%clk 0:03:01.9]}
8... O-O {[%clk 0:03:08.5]} 9. Qe2 {[%clk 0:02:57.7]} 9... a5 {[%clk 0:03:07.4]}
10. Nb3 {[%clk 0:02:53.7]} 10... Bd6 {[%clk 0:03:03.5]} 11. a4 {[%clk
0:02:53.9]} 11... b6 {[%clk 0:03:03.8]} 12. Rd1 {[%clk 0:02:54.8]} 12... Ba6
{[%clk 0:03:02.1]} 13. Qe1 {[%clk 0:02:46.4]} 13... Qe7 {[%clk 0:02:59.5]} 14.
Nh4 {[%clk 0:02:43.1]} 14... Qe6 {[%clk 0:02:40.2]} 15. Nf5 {[%clk 0:02:38.5]}
15... Ne7 {[%clk 0:02:36.3]} 16. Nxd6 {[%clk 0:02:37.6]} 16... cxd6 {[%clk
0:02:37]} 17. Be3 {[%clk 0:02:37.5]} 17... Nd7 {[%clk 0:02:37.7]} 18. Qd2 {[%clk
0:02:37]} 18... Nc8 {[%clk 0:02:30.2]} 19. Ra3 {[%clk 0:02:13.7]} 19... Bb7
{[%clk 0:02:18.1]} 20. Nc1 {[%clk 0:02:13.5]} 20... Nc5 {[%clk 0:02:18.1]} 21.
f3 {[%clk 0:02:13.2]} 21... Rd8 {[%clk 0:02:16.6]} 22. Ne2 {[%clk 0:02:12.4]}
22... d5 {[%clk 0:02:06.6]} 23. Bxc5 {[%clk 0:02:08.5]} 23... bxc5 {[%clk
0:02:08.1]} 24. exd5 {[%clk 0:02:09.9]} 24... Rxd5 {[%clk 0:02:06.2]} 25. Rd3
{[%clk 0:02:11.1]} 25... Nb6 {[%clk 0:01:55.4]} 26. Nc3 {[%clk 0:02:05.2]} 26...
Nc4 {[%clk 0:01:40.8]} 27. Qe2 {[%clk 0:02:05.8]} 27... Rxd3 {[%clk 0:01:41.6]}
28. Qxd3 {[%clk 0:02:06.3]} 28... Nxb2 {[%clk 0:01:36.3]} 29. Qd8+ {[%clk
0:02:06.6]} 29... Qe8 {[%clk 0:01:37.8]} 30. Qxe8+ {[%clk 0:02:07.5]} 30... Rxe8
{[%clk 0:01:38]} 31. Rb1 {[%clk 0:02:09]} 31... Nxa4 {[%clk 0:01:24]} 32. Nxa4
{[%clk 0:02:08.9]} 32... Bc6 {[%clk 0:01:22.9]} 33. Nxc5 {[%clk 0:02:09.9]}
33... a4 {[%clk 0:01:23.3]} 34. Kf2 {[%clk 0:02:03]} 34... Rc8 {[%clk
0:01:23.1]} 35. Ke3 {[%clk 0:02:00.2]} 35... f6 {[%clk 0:01:23.4]} 36. Nd3
{[%clk 0:01:57.8]} 36... Bd5 {[%clk 0:01:21.3]} 37. Nb4 {[%clk 0:01:59]} 37...
Bc4 {[%clk 0:01:18.3]} 38. f4 {[%clk 0:01:55.4]} 38... exf4+ {[%clk 0:01:18.8]}
39. gxf4 {[%clk 0:01:57.3]} 39... a3 {[%clk 0:01:15.7]} 40. Kd4 {[%clk 0:01:58]}
40... Be6 {[%clk 0:01:09.6]} 41. Bd5 {[%clk 0:01:54.1]} 41... Bxd5 {[%clk
0:01:05.2]} 42. Kxd5 {[%clk 0:01:56]} 42... Kf7 {[%clk 0:01:04.8]} 43. Ra1
{[%clk 0:01:55.7]} 43... Rc3 {[%clk 0:01:05.3]} 44. Kd4 {[%clk 0:01:50.5]} 44...
Rh3 {[%clk 0:01:05.5]} 45. c4 {[%clk 0:01:47]} 45... Rxh2 {[%clk 0:01:00.8]} 46.
Rxa3 {[%clk 0:01:47.9]} 46... Rh4 {[%clk 0:01:01.9]} 47. Nd3 {[%clk 0:01:44.7]}
47... g5 {[%clk 0:01:02.1]} 48. c5 {[%clk 0:01:41]} 48... gxf4 {[%clk
0:01:01.8]} 49. c6 {[%clk 0:01:34.6]} 49... Ke6 {[%clk 0:01:02.6]} 50. c7 {[%clk
0:01:29.7]} 50... Kd7 {[%clk 0:01:02.5]} 51. Rc3 {[%clk 0:01:29.8]} 51... Kc8
{[%clk 0:00:52.4]} 52. Kd5 {[%clk 0:01:14.6]} 52... f3 {[%clk 0:00:49.4]} 53.
Nf2 {[%clk 0:01:14.8]} 53... f5 {[%clk 0:00:40.7]} 54. Ke5 {[%clk 0:00:54.7]}
54... Ra4 {[%clk 0:00:35.4]} 55. Nd3 {[%clk 0:00:35.6]} 55... Ra7 {[%clk
0:00:33.4]} 56. Kd6 {[%clk 0:00:33.7]} 56... Ra6+ {[%clk 0:00:34.1]} 57. Ke5
{[%clk 0:00:29.4]} 57... Ra7 {[%clk 0:00:34.3]} 58. Nf2 {[%clk 0:00:19.5]} 58...
Rxc7 {[%clk 0:00:34.7]} 59. Rxf3 {[%clk 0:00:21]} 59... Rc5+ {[%clk 0:00:34.3]}
60. Kd6 {[%clk 0:00:20.3]} 60... Ra5 {[%clk 0:00:34.7]} 61. Nd3 {[%clk
0:00:19.8]} 61... Kd8 {[%clk 0:00:31.8]} 62. Nc5 {[%clk 0:00:19.7]} 62... Ra1
{[%clk 0:00:28.5]} 63. Re3 {[%clk 0:00:12.2]} 63... Rd1+ {[%clk 0:00:28.6]} 64.
Kc6 {[%clk 0:00:13.4]} 64... Rc1 {[%clk 0:00:21.6]} 65. Rf3 {[%clk 0:00:07.8]}
65... Ke7 {[%clk 0:00:21.6]} 66. Rxf5 {[%clk 0:00:07.7]} 66... Rc2 {[%clk
0:00:22.1]} 67. Kd5 {[%clk 0:00:08.2]} 67... Rd2+ {[%clk 0:00:22.8]} 68. Ke5
{[%clk 0:00:09.6]} 68... Re2+ {[%clk 0:00:23.9]} 69. Ne4 {[%clk 0:00:11.1]}
69... Re1 {[%clk 0:00:25.1]} 70. Rf6 {[%clk 0:00:10]} 70... Rxe4+ {[%clk
0:00:24.8]} 71. Kxe4 {[%clk 0:00:11.3]} 71... Kxf6 {[%clk 0:00:26]} 72. Kf3
{[%clk 0:00:13.2]} 72... Kg5 {[%clk 0:00:26.8]} 73. Kg2 {[%clk 0:00:15.1]}
1/2-1/2

[Event "*** Titled Tuesday Blitz"]
[Site "Chess.com"]
[Date "2018.11.06"]
[Round "9"]
[White "saikrishnaReturns"]
[Black "Ramosha"]
[Result "0-1"]
[WhiteElo "2600"]
[BlackElo "2494"]
[TimeControl "180+2"]
[EndTime "15:08:13 PST"]
[Termination "Ramosha won by resignation"]

1. e4 {[%clk 0:03:01.9]} 1... e6 {[%clk 0:02:59.7]} 2. d4 {[%clk 0:03:02.2]}
2... d5 {[%clk 0:03:00.6]} 3. Nc3 {[%clk 0:03:04.1]} 3... Nf6 {[%clk 0:03:00.5]}
4. Bg5 {[%clk 0:03:04.6]} 4... dxe4 {[%clk 0:03:00.9]} 5. Nxe4 {[%clk
0:03:04.9]} 5... Nbd7 {[%clk 0:03:01.5]} 6. Nf3 {[%clk 0:03:03.9]} 6... h6
{[%clk 0:03:02.4]} 7. Bxf6 {[%clk 0:03:04.7]} 7... Nxf6 {[%clk 0:03:03.1]} 8.
Nxf6+ {[%clk 0:03:05.8]} 8... gxf6 {[%clk 0:03:03.9]} 9. Bd3 {[%clk 0:03:07.5]}
9... c5 {[%clk 0:03:04.7]} 10. O-O {[%clk 0:03:07]} 10... cxd4 {[%clk
0:02:57.5]} 11. Nxd4 {[%clk 0:03:07.6]} 11... Bd7 {[%clk 0:02:47.7]} 12. Re1
{[%clk 0:03:04.8]} 12... Qb6 {[%clk 0:02:34.6]} 13. c3 {[%clk 0:02:58.4]} 13...
O-O-O {[%clk 0:02:27]} 14. Qh5 {[%clk 0:02:58.5]} 14... Be8 {[%clk 0:02:11.6]}
15. a4 {[%clk 0:02:57]} 15... Qc5 {[%clk 0:02:00]} 16. Qf3 {[%clk 0:02:55.6]}
16... f5 {[%clk 0:01:50.1]} 17. a5 {[%clk 0:02:49.9]} 17... Bc6 {[%clk
0:01:38.1]} 18. Nxc6 {[%clk 0:02:49.4]} 18... Qxc6 {[%clk 0:01:39.2]} 19. Qe2
{[%clk 0:02:45.2]} 19... Rg8 {[%clk 0:01:36.1]} 20. f3 {[%clk 0:02:46.2]} 20...
Bc5+ {[%clk 0:01:28.4]} 21. Kh1 {[%clk 0:02:47.2]} 21... Rg5 {[%clk 0:01:17.1]}
22. b4 {[%clk 0:02:47.4]} 22... Bd6 {[%clk 0:01:06]} 23. b5 {[%clk 0:02:48.4]}
23... Qc5 {[%clk 0:01:04.1]} 24. b6 {[%clk 0:02:45.2]} 24... a6 {[%clk
0:00:49.6]} 25. Bxa6 {[%clk 0:02:45]} 25... bxa6 {[%clk 0:00:48.5]} 26. Qxa6+
{[%clk 0:02:46.6]} 26... Kd7 {[%clk 0:00:49.6]} 27. Qb7+ {[%clk 0:02:45.4]}
27... Ke8 {[%clk 0:00:48.3]} 28. f4 {[%clk 0:02:29.6]} 28... Bxf4 {[%clk
0:00:42.6]} 29. Red1 {[%clk 0:02:30.6]} 29... Rxd1+ {[%clk 0:00:37.1]} 30. Rxd1
{[%clk 0:02:30.8]} 30... Kf8 {[%clk 0:00:38.4]} 31. a6 {[%clk 0:02:29.4]} 31...
Rh5 {[%clk 0:00:33.6]} 32. g3 {[%clk 0:02:20.7]} 32... Bxg3 {[%clk 0:00:33.7]}
33. Qg2 {[%clk 0:02:21]} 33... Bxh2 {[%clk 0:00:28.4]} 34. Qf3 {[%clk 0:02:00]}
34... Rh4 {[%clk 0:00:21.6]} 35. Rd4 {[%clk 0:01:56.7]} 35... Bf4+ {[%clk
0:00:12.5]} 36. Kg2 {[%clk 0:01:48.5]} 36... Rg4+ {[%clk 0:00:13.4]} 37. Qxg4
{[%clk 0:01:45.9]} 37... fxg4 {[%clk 0:00:13.6]} 38. a7 {[%clk 0:01:46.3]} 38...
Qc6+ {[%clk 0:00:13]} 39. Kf1 {[%clk 0:01:46.9]} 39... Qf3+ {[%clk 0:00:12]} 40.
Ke1 {[%clk 0:01:48]} 40... Qxc3+ {[%clk 0:00:13]} 41. Kf1 {[%clk 0:01:46.4]}
41... Qf3+ {[%clk 0:00:12.8]} 42. Ke1 {[%clk 0:01:47.4]} 42... Qe3+ {[%clk
0:00:13.7]} 43. Kf1 {[%clk 0:01:48.2]} 43... Qf3+ {[%clk 0:00:12.8]} 44. Ke1
{[%clk 0:01:49.4]} 44... Qc3+ {[%clk 0:00:13.6]} 45. Kf1 {[%clk 0:01:50.1]}
45... Qa1+ {[%clk 0:00:14.5]} 46. Ke2 {[%clk 0:01:50.2]} 46... Kg7 {[%clk
0:00:14.5]} 47. Rd8 {[%clk 0:01:47.9]} 47... Qa6+ {[%clk 0:00:14.8]} 48. Kd1
{[%clk 0:01:47.8]} 48... Qf1+ {[%clk 0:00:14.1]} 49. Kc2 {[%clk 0:01:48.1]}
49... Qc1+ {[%clk 0:00:15.1]} 50. Kb3 {[%clk 0:01:47.9]} 50... Qb1+ {[%clk
0:00:16.3]} 51. Kc4 {[%clk 0:01:49]} 51... Qxb6 {[%clk 0:00:15.8]} 52. a8=Q
{[%clk 0:01:49.7]} 52... Qb2 {[%clk 0:00:11.9]} 53. Rg8+ {[%clk 0:01:48.8]}
53... Kh7 {[%clk 0:00:13]} 54. Rf8 {[%clk 0:01:48.1]} 54... Qe2+ {[%clk
0:00:12.8]} 55. Kc5 {[%clk 0:01:47.5]} 55... Be3+ {[%clk 0:00:13.4]} 56. Kd6
{[%clk 0:01:47.7]} 56... Qd3+ {[%clk 0:00:11.7]} 57. Kc7 {[%clk 0:01:36.2]}
57... Bf4+ {[%clk 0:00:12.3]} 58. Kb6 {[%clk 0:01:33.9]} 58... Qb3+ {[%clk
0:00:12.5]} 59. Kc6 {[%clk 0:01:33.3]} 59... Qf3+ {[%clk 0:00:13.2]} 60. Kc5
{[%clk 0:01:33.2]} 60... Qxa8 {[%clk 0:00:12.3]} 61. Rxa8 {[%clk 0:01:33.8]}
61... Kg6 {[%clk 0:00:13.3]} 62. Kd4 {[%clk 0:01:34.6]} 62... f5 {[%clk
0:00:13.2]} 63. Kd3 {[%clk 0:01:35.2]} 63... h5 {[%clk 0:00:13.7]} 64. Ke2
{[%clk 0:01:36.4]} 64... h4 {[%clk 0:00:14.6]} 65. Kf1 {[%clk 0:01:37.8]} 65...
h3 {[%clk 0:00:15.7]} 66. Kg1 {[%clk 0:01:38.8]} 66... Kg5 {[%clk 0:00:16.8]}
67. Rg8+ {[%clk 0:01:38.9]} 67... Kf6 {[%clk 0:00:17]} 68. Rf8+ {[%clk
0:01:39.4]} 68... Kg5 {[%clk 0:00:18]} 69. Rg8+ {[%clk 0:01:40.5]} 69... Kh4
{[%clk 0:00:15.9]} 70. Rh8+ {[%clk 0:01:41]} 70... Kg3 {[%clk 0:00:16.8]} 71.
Re8 {[%clk 0:01:41.9]} 71... e5 {[%clk 0:00:16.7]} 72. Rf8 {[%clk 0:01:42.9]}
72... Be3+ {[%clk 0:00:17.3]} 73. Kh1 {[%clk 0:01:44.2]} 73... Kf4 {[%clk
0:00:18.4]} 74. Kh2 {[%clk 0:01:44.4]} 74... Ke4 {[%clk 0:00:17.7]} 75. Ra8
{[%clk 0:01:43.2]} 75... Bf2 {[%clk 0:00:18.2]} 76. Ra4+ {[%clk 0:01:43.2]}
76... Kd5 {[%clk 0:00:18.7]} 77. Ra5+ {[%clk 0:01:44.1]} 77... Ke4 {[%clk
0:00:18.6]} 78. Ra4+ {[%clk 0:01:45.1]} 78... Kf3 {[%clk 0:00:19.7]} 79. Ra3+
{[%clk 0:01:45.4]} 79... Kf4 {[%clk 0:00:20.8]} 80. Ra2 {[%clk 0:01:43.1]} 80...
Be3 {[%clk 0:00:19.2]} 81. Ra1 {[%clk 0:01:42.4]} 81... Kg5 {[%clk 0:00:18.6]}
82. Ra5 {[%clk 0:01:41.3]} 82... Bd4 {[%clk 0:00:19.3]} 83. Ra8 {[%clk
0:01:39.5]} 83... f4 {[%clk 0:00:20]} 84. Rg8+ {[%clk 0:01:38.8]} 84... Kf5
{[%clk 0:00:20.7]} 85. Rg7 {[%clk 0:01:38.4]} 85... Bf2 {[%clk 0:00:20]} 86.
Rf7+ {[%clk 0:01:38.6]} 86... Ke4 {[%clk 0:00:20.9]} 87. Rb7 {[%clk 0:01:38.5]}
87... Kf3 {[%clk 0:00:21.3]} 88. Rb3+ {[%clk 0:01:39.3]} 88... Be3 {[%clk
0:00:22.3]} 89. Ra3 {[%clk 0:01:40.1]} 89... g3+ {[%clk 0:00:19.4]} 90. Kxh3
{[%clk 0:01:41.4]} 90... g2 {[%clk 0:00:20.2]} 91. Ra1 {[%clk 0:01:42.6]} 91...
g1=Q {[%clk 0:00:20]} 92. Ra2 {[%clk 0:01:43.8]} 92... Qh1+ {[%clk 0:00:18.8]}
93. Rh2 {[%clk 0:01:43.4]} 93... Qb1 {[%clk 0:00:18.5]} 94. Rc2 {[%clk
0:01:39.8]} 94... Qxc2 {[%clk 0:00:17.4]} 0-1